fUST/lending_fUST_20240811
["ID","MTS","AMOUNT","RATE_DAILY","PERIOD"]
[334650267,1723391445897,-500.0,0.00020483,2]
[334650268,1723391445906,-400.0,0.00020531,2]
[334650269,1723391445916,-400.0,0.00020531,2]
[334650270,1723391445926,-400.0,0.00020531,2]
[334650271,1723391445935,-400.0,0.00020531,2]
[334650272,1723391445944,-372.5719,0.00020531,2]
[334650273,1723391445953,-500.0,0.00020547,7]
[334650275,1723391445963,-500.0,0.00020547,7]
[334650277,1723391445972,-516.97099816,0.00020547,7]
[334650279,1723391445983,-319.874486,0.00020547,2]
[334650281,1723391445992,-319.874486,0.00020547,2]
[334650284,1723391446002,-151.0,0.00020547,2]
[334650286,1723391446011,-188.639838,0.00020547,2]
[334650289,1723391446020,-188.639838,0.00020547,2]
[334650290,1723391446030,-2097.766407,0.00020547,2]
[334650293,1723391446040,-726.963009,0.00020547,2]
[334650296,1723391446049,-2097.766407,0.00020547,2]
[334650298,1723391446061,-726.963009,0.00020547,2]
[334650299,1723391446071,-537.303715,0.00020547,2]
[334650301,1723391446080,-537.303715,0.00020547,2]
[334650303,1723391446090,-762.956574,0.00020547,2]
[334650305,1723391446099,-762.956574,0.00020547,2]
[334650307,1723391446108,-308.615301,0.00020547,2]
[334650309,1723391446118,-308.615301,0.00020547,2]
[334650311,1723391446129,-371.374112,0.00020547,2]
[334650313,1723391446138,-371.374112,0.00020547,2]
[334650315,1723391446148,-652.406214,0.00020547,2]
[334650317,1723391446158,-652.406214,0.00020547,2]
[334650319,1723391446168,-151.0,0.00020547,2]
[334650321,1723391446177,-151.0,0.00020547,2]
[334650323,1723391446186,-153.0,0.00020548,2]
[334650325,1723391446196,-153.0,0.00020548,2]
[334650327,1723391446205,-153.0,0.00020548,2]
[334650330,1723391446220,-151.0,0.00020548,2]
[334650332,1723391446234,-151.0,0.00020548,2]
[334650333,1723391446248,-1048.838175,0.00020551,2]
[334650334,1723391446261,-151.0,0.00020551,2]
[334650335,1723391446274,-1048.838175,0.00020551,2]
[334650337,1723391446287,-305.222173,0.00020551,2]
[334650339,1723391446302,-151.0,0.00020551,2]
[334650341,1723391446316,-305.222173,0.00020551,2]
[334650343,1723391446329,-151.0,0.00020551,2]
[334650346,1723391446343,-571.912253,0.00020551,2]
[334650348,1723391446357,-571.912253,0.00020551,2]
[334650349,1723391446370,-151.0,0.00020553,2]
[334650350,1723391446384,-1172.99085,0.00020561,2]
[334650351,1723391446397,-1172.99085,0.00020561,2]
[334650352,1723391446411,-303.274043,0.00020561,2]
[334650354,1723391446426,-303.274043,0.00020561,2]
[334650355,1723391446439,-385.8453,0.00020561,2]
[334650356,1723391446451,-385.8453,0.00020561,2]
[334650357,1723391446463,-159.369747,0.00020561,2]
[334650358,1723391446476,-159.369747,0.00020561,2]
[334650359,1723391446488,-1685.50907,0.00020561,2]
[334650360,1723391446502,-1685.50907,0.00020561,2]
[334650361,1723391446515,-179.69485,0.00020568,2]
[334650362,1723391446529,-165.002825,0.00020568,2]
[334650363,1723391446543,-73934.52233235,0.000206,2]
[334650364,1723391446557,-151.0,0.000206,2]
[334650365,1723391446570,-155.212573,0.000206,2]
[334650366,1723391446582,-151.0,0.000206,2]
[334650367,1723391446593,-217.634412,0.000206,2]
[334650368,1723391446605,-217.634412,0.000206,2]
[334650369,1723391446618,-193.196869,0.000206,2]
[334650370,1723391446635,-151.0,0.000206,2]
[334650371,1723391446647,-151.0,0.000206,2]
[334650372,1723391446660,-151.0,0.000206,2]
[334650373,1723391446671,-172.566062,0.000206,2]
[334650375,1723391446685,-151.0,0.000206,2]
[334650376,1723391446696,-172.566062,0.000206,2]
[334650377,1723391446706,-151.0,0.000206,2]
[334650378,1723391446718,-151.0,0.000206,2]
[334650379,1723391446733,-151.0,0.000206,2]
[334650380,1723391446745,-207.3044688,0.0002074,2]
[334650381,1723391446757,-207.3044688,0.0002074,2]
[334650382,1723391446769,-207.3044688,0.0002074,2]
[334650383,1723391446780,-306.0,0.0002074,2]
[334650384,1723391446792,-267.9126531,0.0002074,2]
[334650385,1723391446805,-267.9126531,0.0002074,2]
[334650386,1723391446816,-1000.0,0.000208,7]
[334650387,1723391446827,-1000.0,0.000208,8]
[334650388,1723391446839,-1000.0,0.000208,9]
[334650389,1723391446850,-595.0,0.000208,2]
[334650390,1723391446863,-1000.0,0.000208,2]
[334650391,1723391446874,-10496.61498137,0.00020821,2]
[334650392,1723391446888,-500.0,0.00020821,3]
[334650393,1723391446899,-151.0,0.00020821,2]
[334650394,1723391446910,-504.4557744,0.00020821,3]
[334650395,1723391446922,-151.0,0.00020821,2]
[334650396,1723391446933,-151.0,0.00020821,2]
[334650397,1723391446944,-151.0,0.00020821,2]
[334650398,1723391446956,-191.485801,0.00020821,2]
[334650399,1723391446967,-500.0,0.00020821,3]
[334650400,1723391446981,-500.0,0.00020821,3]
[334650401,1723391446992,-500.0,0.00020821,3]
[334650402,1723391447004,-509.36450833,0.00020821,3]
[334650403,1723391447015,-500.0,0.00020821,3]
[334650404,1723391447026,-500.0,0.00020821,3]
[334650405,1723391447038,-505.11019263,0.00020821,3]
[334650406,1723391447049,-500.0,0.00020821,3]
[334650407,1723391447061,-500.0,0.00020821,3]
[334650408,1723391447073,-502.98517812,0.00020821,3]
[334650409,1723391447085,-500.0,0.00020821,3]
[334650410,1723391447096,-500.0,0.00020821,3]
[334650411,1723391447108,-503.40576337,0.00020821,3]
[334650412,1723391447120,-500.0,0.00020821,3]
[334650413,1723391447132,-506.01121711,0.00020821,3]
[334650414,1723391447143,-500.0,0.00020821,3]
[334650415,1723391447155,-500.0,0.00020821,3]
[334650416,1723391447169,-504.86483065,0.00020821,3]
[334650417,1723391447180,-500.0,0.00020821,3]
[334650418,1723391447191,-504.87484438,0.00020821,3]
[334650419,1723391447203,-500.0,0.00020821,3]
[334650420,1723391447214,-512.32607829,0.00020821,3]
[334650421,1723391447226,-500.0,0.00020821,3]
[334650422,1723391447238,-500.0,0.00020821,3]
[334650423,1723391447249,-508.8221319,0.00020821,3]
[334650424,1723391447261,-151.0,0.00020821,2]
[334650425,1723391447272,-151.0,0.00020821,2]
[334650426,1723391447283,-151.0,0.00020821,2]
[334650427,1723391447295,-505.81764935,0.00020821,3]
[334650428,1723391447307,-500.0,0.00020821,3]
[334650429,1723391447318,-500.0,0.00020821,3]
[334650430,1723391447329,-501.66092667,0.00020821,3]
[334650431,1723391447340,-500.0,0.00020821,3]
[334650432,1723391447351,-500.88151954,0.00020821,3]
[334650433,1723391447362,-501.52615844,0.00020821,3]
[334650434,1723391447374,-500.0,0.00020821,3]
[334650435,1723391447386,-500.0,0.00020821,3]
[334650436,1723391447398,-500.0,0.00020821,3]
[334650437,1723391447411,-501.06827492,0.00020821,3]
[334650438,1723391447422,-500.0,0.00020821,3]
[334650439,1723391447434,-500.0,0.00020821,3]
[334650440,1723391447445,-500.0,0.00020821,3]
[334650441,1723391447457,-509.41383,0.00020821,3]
[334650442,1723391447471,-501.6350984,0.00020821,3]
[334650443,1723391447483,-646.07888611,0.00020821,3]
[334650444,1723391447495,-509.81422809,0.00020821,3]
[334650445,1723391447507,-500.0,0.00020821,3]
[334650446,1723391447519,-1275.13,0.00020821,3]
[334650447,1723391447531,-500.0,0.00020821,3]
[334650448,1723391447542,-505.08188763,0.00020821,3]
[334650449,1723391447554,-502.68066236,0.00020821,3]
[334650450,1723391447567,-503.96984952,0.00020821,3]
[334650451,1723391447579,-503.00001452,0.00020821,3]
[334650452,1723391447590,-504.94205813,0.00020821,3]
[334650453,1723391447602,-500.0,0.00020821,3]
[334650454,1723391447613,-319.874486,0.00020821,2]
[334650455,1723391447626,-319.874486,0.00020821,2]
[334650456,1723391447638,-500.0,0.00020821,3]
[334650457,1723391447649,-319.874486,0.00020821,2]
[334650458,1723391447661,-319.874486,0.00020821,2]
[334650459,1723391447673,-505.19639206,0.00020821,3]
[334650460,1723391447684,-502.7216176,0.00020821,3]
[334650461,1723391447696,-319.874486,0.00020821,2]
[334650462,1723391447708,-500.0,0.00020821,3]
[334650463,1723391447722,-319.874486,0.00020821,2]
[334650464,1723391447734,-319.874486,0.00020821,2]
[334650465,1723391447745,-502.50116967,0.00020821,3]
[334650466,1723391447755,-319.874486,0.00020821,2]
[334650467,1723391447767,-431.23508725,0.00020821,3]
[334650468,1723391447779,-500.0,0.00020821,3]
[334650469,1723391447788,-616.86,0.00020821,3]
[334650470,1723391447801,-501.07225668,0.00020821,3]
[334650471,1723391447998,-500.0,0.00020821,3]
[334650472,1723391448022,-505.02754684,0.00020821,3]
[334650473,1723391448034,-500.0,0.00020821,3]
[334650474,1723391448043,-500.0,0.00020821,3]
[334650475,1723391448055,-502.66916253,0.00020821,3]
[334650476,1723391448066,-502.24014569,0.00020821,3]
[334650477,1723391448076,-620.44,0.00020821,3]
[334650478,1723391448085,-501.88089988,0.00020821,3]
[334650479,1723391448096,-500.0,0.00020821,3]
[334650480,1723391448106,-500.0,0.00020821,3]
[334650481,1723391448115,-504.48290795,0.00020821,3]
[334650482,1723391448125,-506.2683459,0.00020821,3]
[334650483,1723391448136,-500.0,0.00020821,3]
[334650484,1723391448146,-500.0,0.00020821,3]
[334650485,1723391448156,-217.634412,0.00020821,2]
[334650486,1723391448165,-217.634412,0.00020821,2]
[334650487,1723391448175,-217.634412,0.00020821,2]
[334650488,1723391448185,-217.634412,0.00020821,2]
[334650489,1723391448195,-502.12988075,0.00020821,3]
[334650490,1723391448205,-500.0,0.00020821,3]
[334650491,1723391448215,-217.634412,0.00020821,2]
[334650492,1723391448225,-217.634412,0.00020821,2]
[334650493,1723391448235,-503.11790601,0.00020821,3]
[334650494,1723391448245,-562.19599554,0.00020821,3]
[334650495,1723391448255,-820.2,0.00020821,3]
[334650496,1723391448265,-500.0,0.00020821,3]
[334650497,1723391448275,-500.0,0.00020821,3]
[334650498,1723391448284,-500.0,0.00020821,3]
[334650499,1723391448294,-293.90482398,0.00020821,3]
[334650500,1723391448303,-500.0,0.00020821,3]
[334650501,1723391448313,-514.50075394,0.00020821,3]
[334650502,1723391448324,-500.0,0.00020821,3]
[334650503,1723391448334,-504.99989363,0.00020821,3]
[334650504,1723391448343,-502.27750325,0.00020821,3]
[334650505,1723391448353,-500.0,0.00020821,3]
[334650506,1723391448363,-500.0,0.00020821,3]
[334650507,1723391448373,-500.0,0.00020821,3]
[334650508,1723391448384,-500.0,0.00020821,3]
[334650509,1723391448394,-500.0,0.00020821,3]
[334650510,1723391448403,-500.0,0.00020821,3]
[334650511,1723391448413,-500.0,0.00020821,3]
[334650512,1723391448423,-501.58601704,0.00020821,3]
[334650513,1723391448433,-324.05188359,0.00020821,3]
[334650514,1723391448443,-501.89585389,0.00020821,3]
[334650515,1723391448452,-502.64255635,0.00020821,3]
[334650516,1723391448462,-898.77,0.00020821,3]
[334650517,1723391448472,-2393.07,0.00020821,3]
[334650518,1723391448482,-500.0,0.00020821,3]
[334650519,1723391448492,-500.0,0.00020821,3]
[334650520,1723391448502,-500.0,0.00020821,3]
[334650521,1723391448511,-500.0,0.00020821,3]
[334650522,1723391448521,-500.0,0.00020821,3]
[334650523,1723391448531,-500.0,0.00020821,3]
[334650524,1723391448541,-500.0,0.00020821,3]
[334650525,1723391448550,-500.0,0.00020821,3]
[334650526,1723391448560,-1253.26,0.00020821,3]
[334650527,1723391448570,-500.0,0.00020821,3]
[334650528,1723391448579,-500.0,0.00020821,3]
[334650529,1723391448589,-500.0,0.00020821,3]
[334650530,1723391448599,-500.0,0.00020821,3]
[334650531,1723391448609,-501.88455985,0.00020821,3]
[334650532,1723391448619,-500.0,0.00020821,3]
[334650533,1723391448629,-500.0,0.00020821,3]
[334650534,1723391448639,-501.31996922,0.00020821,3]
[334650535,1723391448648,-500.0,0.00020821,3]
[334650536,1723391448658,-500.0,0.00020821,3]
[334650537,1723391448668,-951.32,0.00020821,3]
[334650538,1723391448678,-500.0,0.00020821,3]
[334650539,1723391448688,-500.0,0.00020821,3]
[334650540,1723391448697,-509.11043862,0.00020821,3]
[334650541,1723391448707,-500.0,0.00020821,3]
[334650542,1723391448720,-500.0,0.00020821,3]
[334650543,1723391448729,-231.0427242,0.00020821,3]
[334650544,1723391448739,-272.69301155,0.00020821,3]
[334650545,1723391448749,-640.92901032,0.00020821,3]
[334650546,1723391448759,-151.0,0.00020821,2]
[334650547,1723391448768,-157.153137,0.00020821,2]
[334650548,1723391448778,-500.0,0.00020821,3]
[334650549,1723391448788,-500.0,0.00020821,3]
[334650550,1723391448798,-500.0,0.00020821,2]
[334650551,1723391448808,-506.41181884,0.00020821,3]
[334650552,1723391448817,-500.0,0.00020821,3]
[334650553,1723391448827,-500.0,0.00020821,3]
[334650554,1723391448837,-500.0,0.00020821,3]
[334650555,1723391448846,-500.0,0.00020821,3]
[334650556,1723391448856,-500.0,0.00020821,3]
[334650557,1723391448867,-500.0,0.00020821,3]
[334650558,1723391448876,-500.0,0.00020821,3]
[334650559,1723391448888,-500.0,0.00020821,3]
[334650560,1723391448897,-500.0,0.00020821,3]
[334650561,1723391448907,-500.0,0.00020821,3]
[334650562,1723391448916,-431.67585237,0.00020821,3]
[334650563,1723391448925,-500.0,0.00020821,3]
[334650564,1723391448935,-500.0,0.00020821,3]
[334650565,1723391448945,-500.0,0.00020821,3]
[334650566,1723391448954,-957.84,0.00020821,3]
[334650567,1723391448963,-510.66453993,0.00020821,3]
[334650568,1723391448973,-500.0,0.00020821,3]
[334650569,1723391448982,-787.36,0.00020821,3]
[334650570,1723391448992,-500.0,0.00020821,3]
[334650571,1723391449001,-513.53862767,0.00020821,3]
[334650572,1723391449011,-500.0,0.00020821,3]
[334650573,1723391449021,-503.59885118,0.00020821,3]
[334650574,1723391449030,-505.78075926,0.00020821,3]
[334650575,1723391449040,-500.0,0.00020821,3]
[334650576,1723391449049,-505.63348757,0.00020821,3]
[334650577,1723391449059,-929.3,0.00020821,3]
[334650578,1723391449068,-500.0,0.00020821,3]
[334650579,1723391449078,-927.5,0.00020821,3]
[334650580,1723391449088,-503.56290974,0.00020821,3]
[334650581,1723391449098,-500.0,0.00020821,3]
[334650582,1723391449108,-500.0,0.00020821,3]
[334650583,1723391449119,-500.0,0.00020821,3]
[334650584,1723391449130,-151.0,0.00020821,2]
[334650585,1723391449142,-151.0,0.00020821,2]
[334650586,1723391449151,-500.0,0.00020821,3]
[334650587,1723391449160,-151.0,0.00020821,2]
[334650588,1723391449170,-151.0,0.00020821,2]
[334650589,1723391449179,-151.0,0.00020821,2]
[334650590,1723391449188,-500.0,0.00020821,3]
[334650591,1723391449197,-500.0,0.00020821,3]
[334650592,1723391449207,-500.0,0.00020821,3]
[334650593,1723391449216,-172.566062,0.00020821,2]
[334650594,1723391449226,-172.566062,0.00020821,2]
[334650595,1723391449235,-172.566062,0.00020821,2]
[334650596,1723391449245,-172.566062,0.00020821,2]
[334650597,1723391449255,-151.0,0.00020821,2]
[334650598,1723391449264,-252.514642,0.00020821,2]
[334650599,1723391449273,-500.0,0.00020821,3]
[334650600,1723391449283,-505.33805237,0.00020821,3]
[334650601,1723391449292,-172.566062,0.00020821,2]
[334650602,1723391449301,-500.0,0.00020821,3]
[334650603,1723391449310,-172.566062,0.00020821,2]
[334650604,1723391449320,-172.566062,0.00020821,2]
[334650605,1723391449329,-172.566062,0.00020821,2]
[334650606,1723391449338,-500.0,0.00020821,3]
[334650607,1723391449347,-503.56423679,0.00020821,3]
[334650608,1723391449357,-846.09,0.00020821,3]
[334650609,1723391449367,-500.0,0.00020821,3]
[334650610,1723391449375,-504.87536699,0.00020821,3]
[334650611,1723391449386,-500.0,0.00020821,3]
[334650612,1723391449395,-502.13057031,0.00020821,3]
[334650613,1723391449406,-500.0,0.00020821,3]
[334650614,1723391449416,-500.0,0.00020821,3]
[334650615,1723391449426,-500.0,0.00020821,3]
[334650616,1723391449435,-500.0,0.00020821,3]
[334650617,1723391449445,-500.0,0.00020821,3]
[334650618,1723391449455,-500.0,0.00020821,3]
[334650619,1723391449464,-505.79909748,0.00020821,3]
[334650620,1723391449477,-500.0,0.00020821,3]
[334650621,1723391449487,-500.0,0.00020821,3]
[334650622,1723391449497,-404.23839521,0.00020821,3]
[334650623,1723391449507,-500.0,0.00020821,3]
[334650624,1723391449518,-500.0,0.00020821,3]
[334650625,1723391449527,-500.0,0.00020821,3]
[334650626,1723391449537,-500.0,0.00020821,3]
[334650627,1723391449547,-503.42778909,0.00020821,3]
[334650628,1723391449557,-500.0,0.00020821,3]
[334650629,1723391449566,-500.0,0.00020821,3]
[334650630,1723391449576,-504.45986182,0.00020821,3]
[334650631,1723391449586,-500.0,0.00020821,3]
[334650632,1723391449595,-500.0,0.00020821,3]
[334650633,1723391449604,-500.0,0.00020821,3]
[334650634,1723391449614,-871.95,0.00020821,3]
[334650635,1723391449623,-151.0,0.00020821,2]
[334650636,1723391449632,-151.0,0.00020821,2]
[334650637,1723391449642,-500.0,0.00020821,3]
[334650638,1723391449652,-151.0,0.00020821,2]
[334650639,1723391449661,-151.0,0.00020821,2]
[334650640,1723391449670,-500.0,0.00020821,3]
[334650641,1723391449680,-151.0,0.00020821,2]
[334650642,1723391449689,-160.038809,0.00020821,2]
[334650643,1723391449699,-503.73910756,0.00020821,3]
[334650644,1723391449709,-1054.79,0.00020821,3]
[334650645,1723391449722,-500.0,0.00020821,3]
[334650646,1723391449732,-500.0,0.00020821,3]
[334650647,1723391449741,-188.639838,0.00020821,2]
[334650648,1723391449750,-188.639838,0.00020821,2]
[334650649,1723391449761,-188.639838,0.00020821,2]
[334650650,1723391449770,-500.0,0.00020821,3]
[334650651,1723391449780,-188.639838,0.00020821,2]
[334650652,1723391449790,-500.0,0.00020821,3]
[334650653,1723391449800,-188.639838,0.00020821,2]
[334650654,1723391449810,-188.639838,0.00020821,2]
[334650655,1723391449819,-188.639838,0.00020821,2]
[334650656,1723391449828,-188.639847,0.00020821,2]
[334650657,1723391449838,-500.0,0.00020821,3]
[334650658,1723391449848,-500.0,0.00020821,3]
[334650659,1723391449858,-500.0,0.00020821,3]
[334650660,1723391449868,-711.52,0.00020821,3]
[334650661,1723391449877,-500.0,0.00020821,3]
[334650662,1723391449888,-500.0,0.00020821,3]
[334650663,1723391449899,-500.0,0.00020821,3]
[334650664,1723391449909,-500.0,0.00020821,3]
[334650665,1723391449919,-500.0,0.00020821,3]
[334650666,1723391449930,-500.0,0.00020821,3]
[334650667,1723391449940,-500.0,0.00020821,3]
[334650668,1723391449950,-500.0,0.00020821,3]
[334650669,1723391449959,-500.0,0.00020821,3]
[334650670,1723391449968,-1501.04,0.00020821,3]
[334650671,1723391449978,-2097.766407,0.00020821,2]
[334650672,1723391449987,-2097.766407,0.00020821,2]
[334650673,1723391449997,-2097.766407,0.00020821,2]
[334650674,1723391450006,-726.963009,0.00020821,2]
[334650675,1723391450016,-2097.766407,0.00020821,2]
[334650676,1723391450026,-628.16,0.00020821,3]
[334650677,1723391450035,-726.963009,0.00020821,2]
[334650678,1723391450045,-726.963009,0.00020821,2]
[334650679,1723391450055,-726.963009,0.00020821,2]
[334650680,1723391450064,-2097.766407,0.00020821,2]
[334650681,1723391450075,-2097.766407,0.00020821,2]
[334650682,1723391450085,-2097.766407,0.00020821,2]
[334650683,1723391450095,-2097.766404,0.00020821,2]
[334650684,1723391450104,-726.963009,0.00020821,2]
[334650685,1723391450113,-726.963009,0.00020821,2]
[334650686,1723391450123,-726.963009,0.00020821,2]
[334650687,1723391450135,-726.963003,0.00020821,2]
[334650688,1723391450145,-526.52,0.00020821,3]
[334650689,1723391450155,-500.0,0.00020821,3]
[334650690,1723391450164,-500.0,0.00020821,3]
[334650691,1723391450174,-500.0,0.00020821,3]
[334650692,1723391450183,-500.0,0.00020821,3]
[334650693,1723391450192,-1227.07,0.00020821,3]
[334650694,1723391450202,-500.0,0.00020821,3]
[334650695,1723391450211,-561.47,0.00020821,3]
[334650696,1723391450221,-500.0,0.00020821,3]
[334650697,1723391450231,-587.79,0.00020821,3]
[334650698,1723391450240,-2025.17,0.00020821,3]
[334650699,1723391450250,-558.95,0.00020821,3]
[334650700,1723391450259,-669.58,0.00020821,3]
[334650701,1723391450269,-500.0,0.00020821,3]
[334650702,1723391450278,-791.8,0.00020821,3]
[334650703,1723391450288,-500.0,0.00020821,3]
[334650704,1723391450297,-734.69,0.00020821,3]
[334650705,1723391450306,-502.67851192,0.00020821,3]
[334650706,1723391450315,-500.0,0.00020821,3]
[334650707,1723391450325,-500.0,0.00020821,3]
[334650708,1723391450334,-500.0,0.00020821,3]
[334650709,1723391450343,-665.17,0.00020821,3]
[334650710,1723391450352,-1248.59,0.00020821,3]
[334650711,1723391450361,-675.29,0.00020821,3]
[334650712,1723391450371,-500.0,0.00020821,3]
[334650713,1723391450380,-537.303715,0.00020821,2]
[334650714,1723391450393,-656.63,0.00020821,3]
[334650715,1723391450407,-500.0,0.00020821,3]
[334650716,1723391450417,-537.303715,0.00020821,2]
[334650717,1723391450426,-537.303715,0.00020821,2]
[334650718,1723391450436,-537.303715,0.00020821,2]
[334650719,1723391450446,-500.0,0.00020821,3]
[334650720,1723391450456,-500.0,0.00020821,3]
[334650721,1723391450465,-503.72203065,0.00020821,3]
[334650722,1723391450475,-537.303715,0.00020821,2]
[334650723,1723391450485,-537.303715,0.00020821,2]
[334650724,1723391450495,-514.15,0.00020821,3]
[334650725,1723391450505,-762.956574,0.00020821,2]
[334650726,1723391450515,-537.303715,0.00020821,2]
[334650727,1723391450524,-762.956574,0.00020821,2]
[334650728,1723391450534,-537.303713,0.00020821,2]
[334650729,1723391450543,-762.956574,0.00020821,2]
[334650730,1723391450552,-762.956574,0.00020821,2]
[334650731,1723391450562,-762.956574,0.00020821,2]
[334650732,1723391450572,-762.956574,0.00020821,2]
[334650733,1723391450582,-500.0,0.00020821,3]
[334650734,1723391450591,-500.0,0.00020821,3]
[334650735,1723391450601,-762.956574,0.00020821,2]
[334650736,1723391450610,-500.0,0.00020821,3]
[334650737,1723391450620,-762.956569,0.00020821,2]
[334650738,1723391450629,-500.0,0.00020821,3]
[334650739,1723391450641,-500.0,0.00020821,3]
[334650740,1723391450650,-500.0,0.00020821,3]
[334650741,1723391450659,-720.16,0.00020821,3]
[334650742,1723391450668,-500.0,0.00020821,3]
[334650743,1723391450678,-877.67,0.00020821,3]
[334650744,1723391450688,-500.0,0.00020821,3]
[334650745,1723391450697,-1417.53,0.00020821,3]
[334650746,1723391450707,-500.0,0.00020821,3]
[334650747,1723391450719,-502.9727646,0.00020821,3]
[334650748,1723391450729,-500.0,0.00020821,2]
[334650749,1723391450739,-1047.72,0.00020821,3]
[334650750,1723391450748,-512.62,0.00020821,3]
[334650751,1723391450758,-500.0,0.00020821,3]
[334650752,1723391450769,-500.0,0.00020821,3]
[334650753,1723391450778,-500.0,0.00020821,3]
[334650754,1723391450788,-552.71,0.00020821,3]
[334650755,1723391450799,-611.76,0.00020821,3]
[334650756,1723391450809,-1261.66,0.00020821,3]
[334650757,1723391450818,-500.0,0.00020821,3]
[334650758,1723391450828,-500.0,0.00020821,3]
[334650759,1723391450838,-500.0,0.00020821,3]
[334650760,1723391450847,-500.0,0.00020821,3]
[334650761,1723391450857,-308.615301,0.00020821,2]
[334650762,1723391450867,-308.615301,0.00020821,2]
[334650763,1723391450876,-308.615301,0.00020821,2]
[334650764,1723391450887,-308.615301,0.00020821,2]
[334650765,1723391450897,-1336.24,0.00020821,3]
[334650766,1723391450907,-500.0,0.00020821,3]
[334650767,1723391450918,-308.615301,0.00020821,2]
[334650768,1723391450928,-308.615301,0.00020821,2]
[334650769,1723391450938,-308.615301,0.00020821,2]
[334650770,1723391450948,-308.615306,0.00020821,2]
[334650771,1723391450957,-500.0,0.00020821,3]
[334650772,1723391450967,-653.61,0.00020821,3]
[334650773,1723391450978,-599.28,0.00020821,3]
[334650774,1723391450990,-500.0,0.00020821,3]
[334650775,1723391451000,-500.0,0.00020821,3]
[334650776,1723391451011,-500.0,0.00020821,3]
[334650777,1723391451022,-500.0,0.00020821,3]
[334650778,1723391451033,-500.0,0.00020821,3]
[334650779,1723391451043,-500.0,0.00020821,3]
[334650780,1723391451055,-500.0,0.00020821,3]
[334650781,1723391451064,-371.374112,0.00020821,2]
[334650782,1723391451074,-371.374112,0.00020821,2]
[334650783,1723391451085,-371.374112,0.00020821,2]
[334650784,1723391451094,-371.374112,0.00020821,2]
[334650785,1723391451104,-1048.838175,0.00020821,2]
[334650786,1723391451249,-1048.838175,0.00020821,2]
[334650787,1723391451259,-500.0,0.00020821,3]
[334650788,1723391451270,-1048.838175,0.00020821,2]
[334650789,1723391451280,-1055.87,0.00020821,3]
[334650790,1723391451289,-1048.838175,0.00020821,2]
[334650791,1723391451299,-371.374112,0.00020821,2]
[334650792,1723391451309,-371.374112,0.00020821,2]
[334650793,1723391451318,-500.0,0.00020821,3]
[334650794,1723391451328,-371.374112,0.00020821,2]
[334650795,1723391451338,-371.374117,0.00020821,2]
[334650796,1723391451348,-1048.838175,0.00020821,2]
[334650797,1723391451358,-1894.03,0.00020821,3]
[334650798,1723391451367,-1048.838175,0.00020821,2]
[334650799,1723391451377,-1048.838175,0.00020821,2]
[334650800,1723391451389,-1048.838175,0.00020821,2]
[334650801,1723391451399,-1709.07,0.00020821,3]
[334650802,1723391451409,-500.0,0.00020821,3]
[334650803,1723391451419,-500.0,0.00020821,3]
[334650804,1723391451429,-507.26053928,0.00020821,3]
[334650805,1723391451440,-5804.38,0.00020821,3]
[334650806,1723391451450,-517.45880423,0.00020821,3]